bitfinex-derivatives/quotes_SOLF0:USTF0_20250808
["timestamp","ask_amount","ask_price","bid_price","bid_amount"]
[1754620064348,5.78014201,174.15,174.14,3.03]
[1754620064549,9.0514,174.14,174.13,9.96]
[1754620064750,12.31897419,174.14,174.13,9.96]
[1754620064953,3.26757419,174.14,174.09,3.03]
[1754620065251,12.32027419,174.1,174.09,3.03]
[1754620066551,3.26757419,174.1,174.09,3.03]
[1754620067052,9.01027419,174.1,174.09,3.03]
[1754620067254,12.32027419,174.1,174.09,3.03]
[1754620067845,9.01027419,174.1,174.09,3.03]
[1754620068257,3.26757419,174.1,174.09,3.03]
[1754620068859,0.0415689,174.11,174.09,3.03]
[1754620069554,0.0415689,174.11,174.09,8.7728]
[1754620069757,3.26757419,174.16,174.1,3.03]
[1754620070053,6.57757419,174.16,174.1,3.03]
[1754620070356,6.57757419,174.16,174.12,3.03]
[1754620070658,3.31,174.15,174.12,3.03]
[1754620070955,9.0512,174.15,174.12,8.772]
[1754620071156,9.0512,174.15,174.13,3.03]
[1754620071359,9.00847419,174.16,174.13,3.03]
[1754620071858,3.31,174.17,174.13,3.03]
[1754620072356,9.0504,174.17,174.14,5.7412]
[1754620072555,9.0504,174.17,174.15,3.03]
[1754620073461,9.0504,174.17,174.16,3.03]
[1754620073756,3.31,174.17,174.16,3.03]
[1754620074659,3.31,174.23,174.16,3.03]
[1754620074953,3.31,174.22,174.18,3.03]
[1754620075157,3.31,174.24,174.21,5.7389]
[1754620075359,3.31,174.24,174.22,3.03]
[1754620075552,3.31,174.24,174.21,5.7389]
[1754620075553,3.31,174.24,174.23,3.03]
[1754620075959,9.00557419,174.25,174.23,3.03]
[1754620076161,9.00557419,174.25,174.17,3.26757419]
[1754620076463,9.048,174.25,174.18,3.03]
[1754620076663,3.31,174.24,174.22,3.03]
[1754620076963,9.0481,174.24,174.21,5.739]
[1754620077164,3.31,174.23,174.22,3.03]
[1754620077664,3.31,174.25,174.22,5.7388]
[1754620077959,3.31,174.24,174.23,3.03]
[1754620081570,9.0481,174.24,174.23,3.03]
[1754620081766,5.7381,174.24,174.2,5.7393]
[1754620081966,389.08757419,174.26,174.19,3.26757419]
[1754620082468,3.16,174.25,174.24,3.21]
[1754620083267,3.16,174.26,174.24,3.21]
[1754620083472,8.8969,174.28,174.24,8.948]
[1754620083667,8.8969,174.28,174.25,3.21]
[1754620084065,3.16,174.27,174.25,3.21]
[1754620084260,3.16,174.27,174.26,3.21]
[1754620084460,5.7371,174.27,174.24,3.21]
[1754620084770,3.16,174.26,174.24,3.21]
[1754620085169,3.16,174.26,174.25,3.21]
[1754620085667,3.16,174.26,174.22,5.7387]
[1754620085969,3.16,174.24,174.23,3.21]
[1754620086173,3.16,174.26,174.23,3.21]
[1754620086372,3.16,174.25,174.24,3.21]
[1754620087974,8.8978,174.25,174.24,3.21]
[1754620088175,3.16,174.25,174.2,3.21]
[1754620088570,3.16,174.23,174.2,3.21]
[1754620088767,3.16,174.22,174.2,3.21]
[1754620088972,3.26757419,174.24,174.18,3.21]
[1754620089271,3.16,174.21,174.2,3.21]
[1754620090877,8.8991,174.21,174.2,3.21]
[1754620091078,3.16,174.21,174.2,3.21]
[1754620092179,8.899,174.21,174.2,3.21]
[1754620095280,8.899,174.21,174.18,9.89]
[1754620095478,3.26757419,174.2,174.18,9.89]
[1754620096169,8.8997,174.19,174.18,9.89]
[1754620096376,8.8997,174.19,174.18,9.8484311]
[1754620096686,3.16,174.19,174.15,3.21]
[1754620096886,9.00827419,174.16,174.15,3.21]
[1754620097077,6.42757419,174.16,174.09,3.26757419]
[1754620097277,3.16,174.15,174.14,3.21]
[1754620097578,3.16,174.15,174.1,121.96996426]
[1754620097777,3.26757419,174.16,174.11,3.21]
[1754620097974,3.16,174.15,174.11,3.21]
[1754620098176,3.16,174.15,174.1,121.96996426]
[1754620098177,3.26757419,174.16,174.13,3.21]
[1754620098577,3.26757419,174.18,174.13,3.21]
[1754620098982,6.42757419,174.18,174.13,3.21]
[1754620099190,12.16767419,174.18,174.14,5.7411]
[1754620099480,3.16,174.2,174.15,3.21]
[1754620099677,3.16,174.19,174.15,3.21]
[1754620099881,3.16,174.19,174.16,3.21]
[1754620100082,3.16,174.18,174.16,3.21]
[1754620100386,8.8999,174.18,174.17,3.21]
[1754620102187,3.16,174.18,174.17,3.21]
[1754620103287,12.16747419,174.18,174.17,3.21]
[1754620103483,12.16747419,174.18,174.16,3.21]
[1754620103484,3.16,174.17,174.16,3.21]
[1754620103681,3.16,174.17,174.14,16.46]
[1754620103882,3.26757419,174.15,174.14,16.46]
[1754620104189,6.42757419,174.15,174.14,16.46]
[1754620104384,12.16847419,174.15,174.14,16.46]
[1754620104585,6.42757419,174.15,174.14,16.46]
[1754620105584,3.16,174.15,174.14,16.46]
[1754620105889,8.9009,174.15,174.14,16.46]
[1754620106090,8.9009,174.15,174.14,13.25]
[1754620115697,9.0712,174.14,174.13,3.02]
[1754620115997,12.33877419,174.14,174.13,3.02]
[1754620118193,9.0712,174.14,174.13,3.02]
[1754620118391,3.33,174.12,174.06,104.62]
[1754620118596,3.26757419,174.11,174.06,104.62]
[1754620118801,3.26757419,174.11,174.03,3.26757419]
[1754620119100,3.26757419,174.11,174.06,3.02]
[1754620119101,5.7424,174.1,174.06,3.02]
[1754620119602,9.00987419,174.11,174.07,3.02]
[1754620120499,3.26757419,174.11,174.07,5.7434]
[1754620120800,3.26757419,174.12,174.08,3.02]
[1754620121100,5.7423,174.11,174.08,3.02]
[1754620126507,5.7423,174.11,174.08,5.7431]
[1754620126807,5.7423,174.11,174.09,3.02]
[1754620129107,9.0723,174.11,174.09,3.02]
[1754620130102,5.7423,174.11,174.09,3.02]
[1754620130709,9.0723,174.11,174.09,3.02]
[1754620132314,5.7424,174.1,174.09,3.02]
[1754620132613,9.0724,174.1,174.09,3.02]
[1754620133705,3.26757419,174.1,174.03,3.02]
[1754620133909,3.26757419,174.08,174.03,3.02]
[1754620134114,3.26757419,174.08,174.05,5.7441]
[1754620134411,3.26757419,174.08,174.06,3.02]
[1754620134608,12.34087419,174.08,174.06,3.02]
[1754620134909,9.01087419,174.08,174.06,3.02]
[1754620136714,5.7434,174.07,174.06,3.02]
[1754620137309,9.0734,174.07,174.06,3.02]
[1754620137510,9.0744,174.05,174.04,3.02]
[1754620140314,5.7444,174.05,174.04,3.02]
[1754620140510,9.01137419,174.06,174.04,3.02]
[1754620140809,12.34137419,174.06,174.04,3.02]
[1754620141114,5.7441,174.05,174.04,3.02]
[1754620141308,9.0741,174.05,174.04,3.02]
[1754620142014,3.33,174.05,174.04,3.02]
[1754620142815,12.29147419,174.06,174.04,3.02]
[1754620143010,12.29147419,174.06,174.05,3.12]
[1754620143814,6.54757419,174.06,174.05,3.12]
[1754620144418,12.29127419,174.06,174.05,3.12]
[1754620145013,6.54757419,174.06,174.05,3.12]
[1754620146220,12.29127419,174.06,174.05,3.12]
[1754620146817,5.7442,174.05,174.02,5.7449]
[1754620147017,3.28,174.04,174.03,3.12]
[1754620147818,5.7442,174.05,174.03,8.8647]
[1754620148115,9.0242,174.05,174.04,3.12]
[1754620149314,3.26757419,174.06,174.0,3.12]
[1754620149519,6.54757419,174.04,174.0,3.12]
[1754620149819,3.26757419,174.04,174.0,3.12]
[1754620150117,3.28,174.03,174.02,3.12]
[1754620150316,3.28,174.03,173.97,3.12]
[1754620150517,3.28,174.03,174.02,8.8651]
[1754620150719,6.54757419,174.04,174.03,3.12]
[1754620151120,3.26757419,174.04,174.03,3.12]
[1754620151322,9.0242,174.05,174.04,3.12]
[1754620155021,5.7444,174.04,174.01,5.7453]
[1754620155317,3.28,174.03,174.01,5.7453]
[1754620155516,3.28,174.03,173.96,389.18757419]
[1754620155716,3.28,174.03,173.97,3.12]
[1754620156028,5.7442,174.05,173.97,3.12]
[1754620156222,5.7442,174.05,174.02,5.7451]
[1754620156430,3.28,174.04,174.03,3.12]
[1754620157529,9.0244,174.04,174.03,3.12]
[1754620159331,6.54757419,174.04,174.03,3.12]
[1754620160635,5.37228785,174.04,174.03,3.12]
[1754620161034,11.11668785,174.04,174.03,3.12]
[1754620162334,5.37228785,174.04,174.03,3.12]
[1754620163439,2.09228785,174.04,174.03,3.12]
[1754620163631,5.37228785,174.04,174.03,3.12]
[1754620170743,11.11698785,174.04,174.03,3.12]
[1754620171139,5.37228785,174.04,174.03,3.12]
[1754620173045,11.11678785,174.04,174.03,3.12]
[1754620173648,5.37228785,174.04,174.03,8.8648]
[1754620174243,5.37228785,174.04,174.03,3.12]
[1754620175447,11.11678785,174.04,174.03,3.12]
[1754620178139,2.09228785,174.04,174.03,3.12]
[1754620178345,5.20228785,174.04,174.03,3.12]
[1754620183052,2.09228785,174.04,174.03,3.12]
[1754620183246,2.09228785,174.04,174.03,8.8649]
[1754620183447,10.94688785,174.04,174.0,2.09228785]
[1754620183750,10.94688785,174.04,174.02,5.745]
[1754620183951,10.94688785,174.04,174.03,3.33]
[1754620184953,5.20228785,174.04,174.03,9.0749]
[1754620185153,3.11,174.04,174.03,9.0749]
[1754620185353,5.20228785,174.04,174.03,9.0749]
[1754620187249,5.20228785,174.05,174.03,3.33]
[1754620187555,5.20228785,174.06,174.05,3.33]
[1754620188058,5.20228785,174.06,174.05,9.0742]
[1754620188259,5.20228785,174.06,174.05,3.33]
[1754620189456,10.94618785,174.06,174.05,3.33]
[1754620189662,2.09228785,174.06,173.96,33.0]
[1754620189958,3.11,174.03,174.01,3.33]
[1754620190459,3.11,174.03,174.02,3.33]
[1754620191465,3.11,174.01,174.0,3.33]
[1754620191965,7.83748785,174.02,174.0,3.33]
[1754620192664,7.83748785,174.02,174.0,9.0757]
[1754620192860,7.83748785,174.02,173.99,2.09228785]
[1754620192861,8.855,174.03,174.01,3.33]
[1754620194161,8.855,174.03,174.01,9.0755]
[1754620194362,8.855,174.03,174.02,3.33]
[1754620200869,3.11,174.02,174.01,3.33]
[1754620201373,8.8552,174.02,174.01,3.33]
[1754620202473,5.745,174.03,174.01,9.0755]
[1754620202674,5.745,174.03,174.01,5.7455]
[1754620202872,5.745,174.03,173.99,2.09228785]
[1754620202873,11.15698785,174.04,173.99,2.09228785]
[1754620203376,11.15698785,174.04,174.01,3.09]
[1754620203377,3.32,174.03,174.01,3.09]
[1754620203873,7.83698785,174.04,173.99,2.09228785]
[1754620204073,3.32,174.05,174.03,3.09]
[1754620204371,2.09228785,174.06,174.04,3.09]
[1754620204572,11.15638785,174.06,174.04,3.09]
[1754620204868,11.15638785,174.06,174.04,5.7443]
[1754620205074,11.15638785,174.06,174.05,3.09]
[1754620205468,5.41228785,174.06,174.05,8.8342]
[1754620205675,5.41228785,174.06,174.05,3.09]
[1754620206473,11.15618785,174.06,174.05,3.09]
[1754620206871,3.32,174.08,173.97,11.4931]
[1754620207074,3.32,174.1,174.07,5.18228785]
[1754620207476,3.32,174.1,174.09,5.7429]
[1754620207675,3.32,174.1,174.09,8.8329]
[1754620207878,5.41228785,174.1,173.99,11.4924]
[1754620208176,5.41228785,174.08,174.07,3.09]
[1754620208367,5.41228785,174.08,174.06,3.09]
[1754620208572,3.32,174.07,174.06,3.09]
[1754620210376,9.0636,174.07,174.06,3.09]
[1754620210579,3.32,174.06,174.04,3.09]
[1754620210780,3.32,174.06,173.97,3.26911055]
[1754620211075,5.7444,174.05,174.03,3.09]
[1754620211276,3.32,174.04,174.02,3.09]
[1754620211477,3.32,174.04,174.01,5.7453]
[1754620211671,3.32,174.04,174.03,3.09]
[1754620211873,3.32,174.03,174.01,3.09]
[1754620212077,6.58911055,174.03,173.99,3.09]
[1754620212378,3.32,174.0,173.96,5.747]
[1754620212676,6.58911055,174.03,173.97,3.09]
[1754620212877,6.58911055,174.03,174.01,3.09]
[1754620213378,12.33401055,174.03,174.01,3.09]
[1754620213974,3.32,174.02,174.01,3.09]
[1754620215480,9.0652,174.02,174.01,3.09]
[1754620216485,5.7457,174.01,173.94,113.23211302]
[1754620216686,3.32,174.01,174.0,3.09]
[1754620216983,6.58911055,174.03,174.0,8.8359]
[1754620217280,12.33421055,174.03,174.01,3.09]
[1754620218385,3.32,174.02,174.01,3.09]
[1754620219488,9.0652,174.02,173.99,8.8361]
[1754620219687,3.32,174.01,174.0,3.09]
[1754620221286,3.32,174.0,173.97,5.7467]
[1754620221486,3.26911055,173.99,173.97,3.09]
[1754620221688,3.32,173.98,173.93,3.09]
[1754620221891,3.32,173.96,173.95,3.09]
[1754620222181,3.26911055,173.97,173.92,104.58]
[1754620222386,3.26911055,173.97,173.94,5.7478]
[1754620222586,6.58911055,173.97,173.95,3.09]
[1754620222985,12.33601055,173.97,173.95,3.09]
[1754620224287,6.58911055,173.97,173.95,8.8375]
[1754620224492,6.58911055,173.97,173.96,3.09]
[1754620225393,12.33601055,173.97,173.96,3.09]
[1754620227393,6.58911055,173.97,173.96,3.09]
[1754620227993,12.33601055,173.97,173.96,3.09]
[1754620228193,6.58911055,173.97,173.95,3.09]
[1754620228393,3.32,173.96,173.95,3.09]
[1754620230191,9.0672,173.96,173.95,3.09]
[1754620230697,3.32,173.96,173.95,3.09]
[1754620231191,3.26911055,173.97,173.92,104.58]
[1754620231397,3.26911055,173.97,173.93,3.09]
[1754620231598,3.32,173.96,173.93,3.09]
[1754620231897,6.54911055,173.96,173.92,3.14]
[1754620232094,3.28,173.98,173.94,3.14]
[1754620232506,9.0265,173.98,173.95,5.7473]
[1754620232700,9.0265,173.98,173.96,3.14]
[1754620233599,5.7469,173.97,173.96,3.14]
[1754620233793,9.0269,173.97,173.96,3.14]
[1754620235196,3.28,173.97,173.96,3.14]
[1754620235895,3.28,173.97,173.96,8.8872]
[1754620236096,9.01581055,173.98,173.96,5.7472]
[1754620236297,12.29581055,173.98,173.97,3.14]
[1754620236502,9.01581055,173.98,173.97,3.14]
[1754620236895,9.0263,173.99,173.97,8.8869]
[1754620237096,5.7463,173.99,173.98,3.14]
[1754620237403,9.0263,173.99,173.98,3.14]
[1754620237697,3.28,173.99,173.98,3.14]
[1754620238695,9.0262,173.99,173.98,3.14]
[1754620238901,3.28,174.02,173.98,3.14]
[1754620239101,6.54911055,174.04,173.98,3.14]
[1754620239398,3.28,174.03,173.98,3.14]
[1754620240202,5.7453,174.02,174.0,5.7457]
[1754620240399,3.28,174.02,174.01,3.14]
[1754620242606,9.0252,174.02,174.01,3.14]
[1754620242804,3.28,174.02,174.01,3.14]
[1754620244006,5.745,174.03,174.01,3.14]
[1754620244205,9.025,174.03,174.01,3.14]
[1754620244406,5.7452,174.02,174.01,3.14]
[1754620244905,9.0252,174.02,174.01,3.14]
[1754620245104,5.745,174.03,174.01,3.14]
[1754620245405,3.28,174.03,174.02,3.14]
[1754620246011,9.0249,174.03,174.02,3.14]
[1754620246503,3.28,174.03,173.97,3.14]
[1754620247515,5.7454,174.02,173.97,3.14]
[1754620247711,9.0254,174.02,173.97,3.14]
[1754620248013,9.0254,174.02,173.99,5.746]
[1754620248211,9.0254,174.02,174.0,3.14]
[1754620249012,3.28,174.02,174.0,5.7459]
[1754620249212,9.025,174.03,174.01,3.14]
[1754620251513,5.745,174.03,174.01,3.14]
[1754620251713,3.28,174.02,174.01,3.14]
[1754620254111,5.37225202,174.03,174.02,3.14]
[1754620254312,3.28,174.03,174.02,3.14]
[1754620256514,5.37225202,174.05,174.01,2.09225202]
[1754620256717,3.28,174.03,174.01,3.14]
[1754620256918,3.28,174.03,174.02,3.14]
[1754620257612,5.37225202,174.03,174.02,3.14]
[1754620258113,11.11715202,174.03,174.02,3.14]
[1754620258818,5.37225202,174.03,174.02,3.14]
[1754620259015,2.09225202,174.03,174.02,3.14]
[1754620259314,11.11655202,174.05,174.02,5.745]
[1754620259519,11.11655202,174.05,174.03,3.14]
[1754620259716,3.28,174.08,174.04,3.14]
[1754620260020,9.0231,174.09,174.07,3.14]
[1754620260520,3.28,174.11,174.06,3.14]
[1754620260714,3.28,174.08,174.03,2.09225202]
[1754620260912,5.37225202,174.06,174.05,3.14]
[1754620261925,0.99989944,174.15,174.05,5.7442]
[1754620262121,5.41225202,174.08,174.06,3.31]
[1754620262321,3.32,174.07,174.05,5.7442]
[1754620262927,3.32,174.07,174.06,3.31]
[1754620263322,5.7434,174.08,174.06,3.31]
[1754620263521,3.32,174.09,174.07,3.31]
[1754620263726,3.26728912,174.12,174.07,3.31]
[1754620263928,3.32,174.1,174.07,3.31]
[1754620264228,5.7428,174.1,174.07,9.0536]
[1754620264430,3.32,174.09,174.08,3.31]
[1754620265229,9.0629,174.09,174.08,3.31]
[1754620267234,3.32,174.09,174.08,3.31]
[1754620268231,3.32,174.11,174.09,3.31]
[1754620268636,3.32,174.11,174.09,9.0527]
[1754620268826,3.32,174.11,174.1,3.31]
[1754620270739,3.32,174.12,174.1,3.31]
[1754620271030,3.32,174.14,174.08,3.26728912]
[1754620271236,3.32,174.14,174.09,3.31]
[1754620271636,9.0614,174.14,174.12,3.31]
[1754620272039,3.32,174.14,174.12,3.31]
[1754620272238,3.32,174.15,174.14,3.31]
[1754620272536,3.32,174.15,174.1,3.30730189]
[1754620272737,3.32,174.14,174.12,5.7417]
[1754620273239,3.32,174.13,174.12,5.7417]
[1754620273836,3.32,174.13,174.12,9.0517]
[1754620274040,9.0611,174.15,174.13,9.0516]
[1754620274238,3.32,174.14,174.13,3.31]
[1754620275439,3.32,174.13,174.11,3.34674982]
[1754620275737,3.32,174.15,174.12,3.31]
[1754620275938,3.32,174.15,174.13,3.31]
[1754620276132,3.32,174.14,174.13,3.31]
[1754620276734,3.26728912,174.16,174.14,3.31]
[1754620276934,3.32,174.15,174.14,3.31]
[1754620277740,9.0609,174.15,174.14,3.31]
[1754620279744,3.32,174.15,174.14,3.31]
[1754620281147,9.0609,174.15,174.14,3.31]
[1754620282449,5.7413,174.14,174.12,3.31]
[1754620282749,6.58728912,174.13,174.11,0.03674982]
[1754620282943,9.0619,174.12,174.11,3.34674982]
[1754620283351,3.32,174.12,174.11,3.34674982]
[1754620284153,3.32,174.12,174.11,9.08894982]
[1754620285352,3.32,174.12,174.11,3.34674982]
[1754620286558,9.0619,174.12,174.11,0.03674982]
[1754620287053,9.0619,174.12,174.11,3.34674982]
[1754620288253,3.32,174.12,174.11,3.34674982]
[1754620288449,3.32,174.12,174.11,0.03674982]
[1754620288655,3.32,174.12,174.11,3.34674982]
[1754620288855,9.00908912,174.13,174.11,3.34674982]
[1754620289055,3.32,174.12,174.11,3.34674982]
[1754620289256,3.26728912,174.13,174.11,3.34674982]
[1754620289461,6.58728912,174.13,174.11,3.34674982]
[1754620289646,6.58728912,174.13,174.12,3.31]
[1754620290047,3.26728912,174.15,174.12,3.31]
[1754620290254,3.32,174.14,174.13,9.0516]
[1754620290454,3.26728912,174.15,174.12,3.31]
[1754620290654,3.32,174.12,174.11,0.03674982]
[1754620290951,9.0619,174.12,174.11,0.03674982]
[1754620291149,3.32,174.12,174.11,3.34674982]
[1754620291354,6.58728912,174.13,174.12,3.31]
[1754620291954,3.32,174.13,174.12,3.31]
[1754620292658,3.32,174.13,174.12,9.0519]
[1754620293858,3.32,174.13,174.12,3.31]
[1754620294060,9.00838912,174.15,174.12,3.31]
[1754620294261,3.07,174.14,174.12,3.31]
[1754620294563,6.33728912,174.15,174.12,3.02]
[1754620294768,6.33728912,174.17,174.12,3.02]
[1754620295062,3.07,174.16,174.12,3.02]
[1754620295365,3.07,174.16,174.11,0.03674982]
[1754620295366,3.07,174.16,174.14,5.7411]
[1754620295666,3.07,174.16,174.15,3.02]
[1754620296763,3.07,174.18,174.16,3.02]
[1754620297361,3.07,174.18,174.16,5.7406]
[1754620297663,3.07,174.18,174.17,3.02]
[1754620298661,8.81,174.18,174.17,3.02]
[1754620299060,3.07,174.17,174.16,3.0618352]
[1754620299258,5.7403,174.17,174.16,0.0418352]
[1754620299463,8.8103,174.17,174.16,0.0418352]
[1754620299664,3.07,174.17,174.16,0.0418352]
[1754620300262,3.07,174.17,174.16,3.0618352]
[1754620300863,8.8103,174.17,174.16,0.0418352]
[1754620301362,3.07,174.17,174.16,3.0618352]
[1754620302264,3.07,174.17,174.16,0.0418352]
[1754620302765,8.8103,174.17,174.16,0.0418352]
[1754620303568,12.07758912,174.17,174.16,0.0418352]
[1754620305168,6.33728912,174.17,174.16,3.0618352]
[1754620305366,3.26728912,174.17,174.16,3.0618352]
[1754620305570,12.07708912,174.19,174.16,3.0618352]
[1754620305771,12.07708912,174.19,174.17,3.02]
[1754620305971,3.07,174.18,174.17,3.02]
[1754620306369,8.8102,174.18,174.16,0.0418352]
[1754620306673,3.07,174.17,174.16,3.0618352]
[1754620307564,9.00698912,174.19,174.16,8.8024352]
[1754620307769,3.07,174.18,174.17,3.02]
[1754620308371,8.81,174.18,174.17,3.02]
[1754620313774,8.8103,174.17,174.16,3.0618352]
[1754620314375,3.07,174.17,174.16,3.0618352]
[1754620314574,5.7401,174.18,174.17,3.02]
[1754620315676,8.8101,174.18,174.17,3.02]
[1754620317077,5.7401,174.18,174.17,3.02]
[1754620317977,8.8101,174.18,174.17,3.02]
[1754620319077,5.7401,174.18,174.17,3.02]
[1754620320181,3.07,174.18,174.17,3.02]
[1754620320380,3.07,174.18,174.16,3.0618352]
[1754620320783,5.7403,174.17,174.16,3.0618352]
[1754620320980,8.8103,174.17,174.16,3.0618352]
[1754620321277,12.07758912,174.17,174.16,0.0418352]
[1754620321886,12.07758912,174.17,174.16,3.3218352]
[1754620324081,12.07758912,174.17,174.16,0.0418352]
[1754620324680,12.07758912,174.17,174.16,3.3218352]
[1754620324681,10.89951469,174.17,174.16,3.3218352]
[1754620326090,3.12,174.2,174.16,3.3218352]
[1754620326286,2.08921469,174.19,174.16,3.3218352]
[1754620326488,8.8602,174.18,174.16,0.0418352]
[1754620326690,5.20921469,174.17,174.16,3.3218352]
[1754620327189,10.94951469,174.17,174.16,3.3218352]
[1754620327892,5.20921469,174.17,174.16,3.3218352]
[1754620329999,2.08921469,174.17,174.16,3.3218352]
[1754620330898,5.7401,174.18,174.16,3.3218352]
[1754620331092,2.08921469,174.17,174.16,3.3218352]
[1754620331292,2.08921469,174.17,174.16,9.0624352]
[1754620331902,8.8598,174.19,174.16,9.0624352]
[1754620332196,2.08921469,174.17,174.16,9.0624352]
[1754620333200,2.08921469,174.18,174.17,5.74]
[1754620333497,2.08921469,174.18,174.17,9.02]
[1754620335101,7.82891469,174.19,174.17,9.02]
[1754620335408,8.8594,174.2,174.18,3.28]
[1754620335696,107.58,174.23,174.18,3.28]
[1754620335895,5.20921469,174.22,174.18,3.28]
[1754620336093,2.08921469,174.21,174.19,5.7394]
[1754620336301,5.20921469,174.21,174.2,3.28]
[1754620336495,3.12,174.21,174.2,3.28]
[1754620336692,5.20921469,174.21,174.2,3.28]
[1754620337407,5.20921469,174.21,174.2,9.0193]
[1754620338702,3.12,174.2,174.16,0.0418352]
[1754620339008,3.12,174.2,174.18,3.28]
[1754620339705,5.7396,174.19,174.18,3.28]
[1754620340008,2.08921469,174.19,174.17,3.28]
[1754620340196,5.20921469,174.19,174.16,0.0418352]
[1754620340499,5.20921469,174.19,174.18,3.28]
[1754620340703,5.20921469,174.19,174.16,0.0418352]
[1754620340905,3.12,174.18,174.17,3.28]
[1754620341200,2.08921469,174.19,174.17,3.28]
[1754620341597,8.8595,174.2,174.17,5.7401]
[1754620341801,2.08921469,174.19,174.18,3.28]
[1754620342001,2.08921469,174.19,174.16,0.0418352]
[1754620342208,2.08921469,174.17,174.16,0.0418352]
[1754620342505,5.20921469,174.17,174.16,0.0418352]
[1754620342908,5.20921469,174.17,174.16,3.3218352]
[1754620343207,10.94951469,174.17,174.16,0.0418352]
[1754620343608,10.94951469,174.17,174.16,3.3218352]
[1754620345105,10.94951469,174.17,174.16,0.0418352]
[1754620345708,10.94951469,174.17,174.16,3.3218352]
[1754620346011,2.08921469,174.17,174.16,3.3218352]
[1754620346213,3.12,174.19,174.16,3.3218352]
[1754620346414,5.20921469,174.17,174.16,3.3218352]
[1754620347514,2.08921469,174.17,174.16,3.3218352]
[1754620348012,2.08921469,174.17,174.16,9.0624352]
[1754620348511,2.08921469,174.17,174.16,3.3218352]
[1754620348912,5.20921469,174.17,174.16,3.3218352]
[1754620350408,10.94951469,174.17,174.16,3.3218352]
[1754620350609,10.94951469,174.17,174.16,0.0418352]
[1754620352413,2.08921469,174.17,174.16,3.0818352]
[1754620354514,2.08921469,174.17,174.16,8.8224352]
[1754620355017,5.11921469,174.17,174.16,3.0818352]
[1754620355517,2.08921469,174.17,174.16,3.0818352]
[1754620355724,2.08921469,174.17,174.16,8.8224352]
[1754620356013,2.08921469,174.21,174.17,3.04]
[1754620356515,2.08921469,174.2,174.19,5.7393]
[1754620356715,2.08921469,174.2,174.19,8.7793]
[1754620357916,3.03,174.22,174.19,8.7793]
[1754620358117,2.08921469,174.2,174.19,5.7393]
[1754620358519,3.03,174.22,174.2,5.7393]
[1754620358717,6.29263814,174.22,174.2,5.7393]
[1754620359017,3.03,174.21,174.17,0.03953677]
[1754620359220,3.03,174.21,174.18,3.04]
[1754620359617,6.29263814,174.2,174.18,3.04]
[1754620360216,3.03,174.19,174.17,0.03953677]
[1754620360618,3.03,174.19,174.17,3.07953677]
[1754620360916,3.03,174.18,174.17,0.03953677]
[1754620361520,3.03,174.18,174.17,3.07953677]
[1754620363321,6.29263814,174.18,174.17,0.03953677]
[1754620363816,6.29263814,174.18,174.17,3.07953677]
[1754620365216,6.29263814,174.18,174.17,0.03953677]
[1754620365419,12.03263814,174.18,174.17,0.03953677]